[Event "Titled Tuesday Blitz May 03 Late 2022"]
[White "Riff, Vincent"]
[Black "Ovezdurdyyeva, Jemal"]
[WhiteFideId "617776"]
[BlackFideId "14001888"]
[WhiteElo "2377"]
[BlackElo "1946"]
[Result "1-0"]
[Round "01"]
[TimeControl "180+1"]
[Date "2022.05.03"]
[WhiteClock "0:00:27"]
[BlackClock "0:00:24"]

1. e4 {[%clk 0:03:00]}  d6 {[%clk 0:02:59]} 2. Nc3 {[%clk 0:03:00]}  Nf6 {[%clk 0:03:00]} 3. d4 {[%clk 0:03:00]}  g6 {[%clk 0:03:00]} 4. f4 {[%clk 0:02:58]}  c6 {[%clk 0:03:00]} 5. Nf3 {[%clk 0:02:55]}  b5 {[%clk 0:03:01]} 6. e5 {[%clk 0:02:53]}  dxe5 {[%clk 0:02:59]} 7. dxe5 {[%clk 0:02:51]}  Qxd1+ {[%clk 0:02:49]} 8. Nxd1 {[%clk 0:02:52]}  Nd5 {[%clk 0:02:47]} 9. c4 {[%clk 0:02:51]}  Nb4 {[%clk 0:02:37]} 10. Ne3 {[%clk 0:02:49]}  bxc4 {[%clk 0:02:30]} 11. Bxc4 {[%clk 0:02:48]}  Bh6 {[%clk 0:02:30]} 12. a3 {[%clk 0:02:45]}  N4a6 {[%clk 0:02:28]} 13. Ng4 {[%clk 0:02:39]}  Bxg4 {[%clk 0:02:26]} 14. O-O {[%clk 0:02:34]}  O-O {[%clk 0:02:24]} 15. Be3 {[%clk 0:02:33]}  Nc7 {[%clk 0:02:19]} 16. Bc5 {[%clk 0:02:29]}  Re8 {[%clk 0:02:11]} 17. Ng5 {[%clk 0:02:25]}  Bxg5 {[%clk 0:02:00]} 18. fxg5 {[%clk 0:02:26]}  Be6 {[%clk 0:02:01]} 19. Be2 {[%clk 0:02:24]}  Nd7 {[%clk 0:01:59]} 20. Bd4 {[%clk 0:02:23]}  Nb5 {[%clk 0:02:00]} 21. Bf2 {[%clk 0:02:19]}  Nxe5 {[%clk 0:01:59]} 22. Rac1 {[%clk 0:02:17]}  Rac8 {[%clk 0:01:51]} 23. h3 {[%clk 0:02:16]}  a6 {[%clk 0:01:42]} 24. a4 {[%clk 0:02:10]}  Nc7 {[%clk 0:01:37]} 25. Bg3 {[%clk 0:02:10]}  Nd7 {[%clk 0:01:22]} 26. Rxc6 {[%clk 0:02:10]}  Nd5 {[%clk 0:01:17]} 27. Rxc8 {[%clk 0:02:08]}  Rxc8 {[%clk 0:01:16]} 28. Bxa6 {[%clk 0:02:09]}  Ra8 {[%clk 0:01:16]} 29. Bb5 {[%clk 0:02:08]}  Nc5 {[%clk 0:01:17]} 30. Ra1 {[%clk 0:01:56]}  Ne4 {[%clk 0:01:09]} 31. Be1 {[%clk 0:01:55]}  Nxg5 {[%clk 0:01:05]} 32. a5 {[%clk 0:01:55]}  Nc7 {[%clk 0:00:56]} 33. Be2 {[%clk 0:01:45]}  Bc8 {[%clk 0:00:54]} 34. Bg3 {[%clk 0:01:39]}  Na6 {[%clk 0:00:52]} 35. Be1 {[%clk 0:01:37]}  Ne6 {[%clk 0:00:50]} 36. b4 {[%clk 0:01:35]}  Nd4 {[%clk 0:00:49]} 37. Bd3 {[%clk 0:01:35]}  Bd7 {[%clk 0:00:46]} 38. Bf2 {[%clk 0:01:32]}  Nb5 {[%clk 0:00:45]} 39. Rd1 {[%clk 0:01:30]}  Nxb4 {[%clk 0:00:45]} 40. Bxg6 {[%clk 0:01:25]}  fxg6 {[%clk 0:00:41]} 41. Rxd7 {[%clk 0:01:25]}  Rxa5 {[%clk 0:00:42]} 42. Rxe7 {[%clk 0:01:26]}  Ra1+ {[%clk 0:00:42]} 43. Kh2 {[%clk 0:01:25]}  Nd5 {[%clk 0:00:43]} 44. Rb7 {[%clk 0:01:24]}  Nbc3 {[%clk 0:00:41]} 45. Bd4 {[%clk 0:01:23]}  Rd1 {[%clk 0:00:42]} 46. Be5 {[%clk 0:01:22]}  Re1 {[%clk 0:00:41]} 47. Bd4 {[%clk 0:01:22]}  Ne2 {[%clk 0:00:40]} 48. Be5 {[%clk 0:01:16]}  Nef4 {[%clk 0:00:39]} 49. Rb8+ {[%clk 0:01:12]}  Kf7 {[%clk 0:00:39]} 50. Rb7+ {[%clk 0:01:13]}  Ke6 {[%clk 0:00:39]} 51. Bxf4 {[%clk 0:01:06]}  Nxf4 {[%clk 0:00:39]} 52. Rxh7 {[%clk 0:01:06]}  Re2 {[%clk 0:00:39]} 53. Kg3 {[%clk 0:01:06]}  Nxg2 {[%clk 0:00:38]} 54. Rb7 {[%clk 0:01:02]}  Ne3 {[%clk 0:00:35]} 55. Kf3 {[%clk 0:01:01]}  Re1 {[%clk 0:00:35]} 56. Rb6+ {[%clk 0:00:55]}  Kf7 {[%clk 0:00:34]} 57. Kf2 {[%clk 0:00:52]}  Nc2 {[%clk 0:00:34]} 58. Rc6 {[%clk 0:00:52]}  Rc1 {[%clk 0:00:34]} 59. h4 {[%clk 0:00:45]}  Rh1 {[%clk 0:00:33]} 60. Rc7+ {[%clk 0:00:40]}  Kf6 {[%clk 0:00:32]} 61. Rc6+ {[%clk 0:00:39]}  Kg7 {[%clk 0:00:33]} 62. Kg3 {[%clk 0:00:37]}  Nd4 {[%clk 0:00:25]} 63. Rc7+ {[%clk 0:00:33]}  Kh6 {[%clk 0:00:24]} 64. Kg4 {[%clk 0:00:33]}  Nf5 {[%clk 0:00:25]} 65. h5 {[%clk 0:00:33]}  Rxh5 {[%clk 0:00:25]} 66. Rc8 {[%clk 0:00:33]}  Rg5+ {[%clk 0:00:25]} 67. Kf4 {[%clk 0:00:32]}  Rh5 {[%clk 0:00:26]} 68. Rh8+ {[%clk 0:00:30]}  Kg7 {[%clk 0:00:24]} 69. Rxh5 {[%clk 0:00:29]}  g5+ {[%clk 0:00:24]} 70. Kxf5 {[%clk 0:00:27]} 1-0


[Site "https://www.chess.com"]

[Event "Titled Tuesday Blitz May 03 Late 2022"]
[White "Roux, Baptiste"]
[Black "Vypkhaniuk, Ihor"]
[WhiteFideId "36017450"]
[BlackFideId "14112256"]
[WhiteElo "1935"]
[BlackElo "2346"]
[Result "0-1"]
[Round "01"]
[TimeControl "180+1"]
[Date "2022.05.03"]
[WhiteClock "0:00:05"]
[BlackClock "0:00:41"]

1. e4 {[%clk 0:02:59]}  d5 {[%clk 0:03:00]} 2. exd5 {[%clk 0:02:58]}  Nf6 {[%clk 0:03:00]} 3. d4 {[%clk 0:02:57]}  Bg4 {[%clk 0:03:01]} 4. Bb5+ {[%clk 0:02:57]}  Nbd7 {[%clk 0:03:00]} 5. Ne2 {[%clk 0:02:55]}  Nxd5 {[%clk 0:02:58]} 6. O-O {[%clk 0:02:54]}  e6 {[%clk 0:02:55]} 7. c4 {[%clk 0:02:50]}  Nf6 {[%clk 0:02:55]} 8. Nbc3 {[%clk 0:02:49]}  c6 {[%clk 0:02:46]} 9. Ba4 {[%clk 0:02:49]}  Bd6 {[%clk 0:02:46]} 10. f3 {[%clk 0:02:46]}  Bf5 {[%clk 0:02:44]} 11. Bc2 {[%clk 0:02:42]}  Bg6 {[%clk 0:02:36]} 12. Bf4 {[%clk 0:02:39]}  Qc7 {[%clk 0:02:34]} 13. Bxd6 {[%clk 0:02:38]}  Qxd6 {[%clk 0:02:35]} 14. Ng3 {[%clk 0:02:34]}  O-O {[%clk 0:02:34]} 15. Nge4 {[%clk 0:02:33]}  Qb4 {[%clk 0:02:32]} 16. Nxf6+ {[%clk 0:02:19]}  Nxf6 {[%clk 0:02:31]} 17. Bxg6 {[%clk 0:02:17]}  hxg6 {[%clk 0:02:32]} 18. Qb3 {[%clk 0:02:17]}  Qd6 {[%clk 0:02:30]} 19. Rad1 {[%clk 0:02:15]}  Rab8 {[%clk 0:02:27]} 20. Ne4 {[%clk 0:02:14]}  Qe7 {[%clk 0:02:26]} 21. Rfe1 {[%clk 0:02:08]}  Rfd8 {[%clk 0:02:23]} 22. c5 {[%clk 0:01:59]}  Nxe4 {[%clk 0:02:17]} 23. fxe4 {[%clk 0:01:58]}  e5 {[%clk 0:02:16]} 24. Qc4 {[%clk 0:01:45]}  exd4 {[%clk 0:02:15]} 25. Rxd4 {[%clk 0:01:46]}  Rxd4 {[%clk 0:02:15]} 26. Qxd4 {[%clk 0:01:45]}  Rd8 {[%clk 0:02:16]} 27. Qc4 {[%clk 0:01:34]}  Qe5 {[%clk 0:02:09]} 28. Rf1 {[%clk 0:01:30]}  Qd4+ {[%clk 0:02:05]} 29. Qxd4 {[%clk 0:01:30]}  Rxd4 {[%clk 0:02:06]} 30. Rf2 {[%clk 0:01:24]}  Rxe4 {[%clk 0:01:58]} 31. Rd2 {[%clk 0:01:24]}  Rc4 {[%clk 0:01:33]} 32. Rd8+ {[%clk 0:01:15]}  Kh7 {[%clk 0:01:33]} 33. Rd7 {[%clk 0:01:16]}  Rxc5 {[%clk 0:01:31]} 34. Rxb7 {[%clk 0:01:15]}  Ra5 {[%clk 0:01:30]} 35. a3 {[%clk 0:01:12]}  f6 {[%clk 0:01:30]} 36. Kf2 {[%clk 0:01:10]}  Kh6 {[%clk 0:01:27]} 37. Rc7 {[%clk 0:01:10]}  Rb5 {[%clk 0:01:26]} 38. b4 {[%clk 0:01:08]}  a5 {[%clk 0:01:26]} 39. bxa5 {[%clk 0:01:03]}  Rxa5 {[%clk 0:01:27]} 40. Rxc6 {[%clk 0:01:03]}  Rxa3 {[%clk 0:01:27]} 41. h3 {[%clk 0:01:03]}  g5 {[%clk 0:01:27]} 42. Kg1 {[%clk 0:01:02]}  Kg6 {[%clk 0:01:28]} 43. Kh2 {[%clk 0:01:03]}  Kf5 {[%clk 0:01:27]} 44. Rc5+ {[%clk 0:01:03]}  Kg6 {[%clk 0:01:28]} 45. Rb5 {[%clk 0:01:03]}  Ra4 {[%clk 0:01:28]} 46. Rb6 {[%clk 0:01:04]}  Re4 {[%clk 0:01:29]} 47. Rb5 {[%clk 0:01:04]}  Re5 {[%clk 0:01:28]} 48. Rb6 {[%clk 0:01:04]}  Kf5 {[%clk 0:01:28]} 49. Kg3 {[%clk 0:01:03]}  Re3+ {[%clk 0:01:27]} 50. Kf2 {[%clk 0:01:03]}  Rc3 {[%clk 0:01:27]} 51. Rb5+ {[%clk 0:01:03]}  Kg6 {[%clk 0:01:28]} 52. Rb7 {[%clk 0:01:03]}  Rc6 {[%clk 0:01:28]} 53. Kg3 {[%clk 0:01:03]}  f5 {[%clk 0:01:28]} 54. Kh2 {[%clk 0:01:02]}  Rc4 {[%clk 0:01:28]} 55. Rb6+ {[%clk 0:01:02]}  Kh5 {[%clk 0:01:28]} 56. Rb7 {[%clk 0:01:03]}  Kg6 {[%clk 0:01:29]} 57. Rb6+ {[%clk 0:01:03]}  Kh5 {[%clk 0:01:29]} 58. Rb7 {[%clk 0:01:03]}  Kh6 {[%clk 0:01:29]} 59. Rb6+ {[%clk 0:01:04]}  g6 {[%clk 0:01:30]} 60. Rb8 {[%clk 0:01:04]}  g4 {[%clk 0:01:30]} 61. hxg4 {[%clk 0:01:03]}  Rxg4 {[%clk 0:01:31]} 62. Kh3 {[%clk 0:01:03]}  Kg5 {[%clk 0:01:32]} 63. Rb6 {[%clk 0:01:00]}  Ra4 {[%clk 0:01:32]} 64. Rb5 {[%clk 0:00:58]}  Ra3+ {[%clk 0:01:32]} 65. Kh2 {[%clk 0:00:58]}  Ra2 {[%clk 0:01:33]} 66. Kg3 {[%clk 0:00:57]}  Ra3+ {[%clk 0:01:34]} 67. Kh2 {[%clk 0:00:57]}  Kh5 {[%clk 0:01:34]} 68. Rb8 {[%clk 0:00:56]}  Kg4 {[%clk 0:01:34]} 69. Rb4+ {[%clk 0:00:55]}  f4 {[%clk 0:01:34]} 70. Rb2 {[%clk 0:00:50]}  g5 {[%clk 0:01:35]} 71. Rc2 {[%clk 0:00:51]}  Re3 {[%clk 0:01:33]} 72. Rb2 {[%clk 0:00:50]}  Re6 {[%clk 0:01:27]} 73. Rc2 {[%clk 0:00:41]}  Re3 {[%clk 0:01:28]} 74. Rb2 {[%clk 0:00:42]}  Re7 {[%clk 0:01:28]} 75. Rc2 {[%clk 0:00:40]}  Rh7+ {[%clk 0:01:29]} 76. Kg1 {[%clk 0:00:40]}  Ra7 {[%clk 0:01:29]} 77. Kh2 {[%clk 0:00:40]}  Kh4 {[%clk 0:01:20]} 78. Rb2 {[%clk 0:00:37]}  g4 {[%clk 0:01:19]} 79. Rb1 {[%clk 0:00:34]}  Ra2 {[%clk 0:01:16]} 80. Kg1 {[%clk 0:00:26]}  Kg3 {[%clk 0:01:07]} 81. Kh1 {[%clk 0:00:20]}  Rc2 {[%clk 0:00:55]} 82. Ra1 {[%clk 0:00:19]}  Re2 {[%clk 0:00:55]} 83. Rb1 {[%clk 0:00:19]}  f3 {[%clk 0:00:52]} 84. Rg1 {[%clk 0:00:15]}  f2 {[%clk 0:00:46]} 85. Rf1 {[%clk 0:00:05]}  Re5 {[%clk 0:00:42]} 86. Ra1 {[%clk 0:00:05]}  Rh5# {[%clk 0:00:41]} 0-1


[Site "https://www.chess.com"]

[Event "Titled Tuesday Blitz May 03 Late 2022"]
[White "Rustemov, Alexander"]
[Black "Avalos Parra, Joao"]
[WhiteFideId "4119002"]
[BlackFideId "3402541"]
[WhiteElo "2718"]
[BlackElo "2173"]
[Result "1-0"]
[Round "01"]
[TimeControl "180+1"]
[Date "2022.05.03"]
[WhiteClock "0:00:53"]
[BlackClock "0:00:09"]

1. d4 {[%clk 0:03:00]}  d5 {[%clk 0:02:54]} 2. c4 {[%clk 0:03:00]}  e6 {[%clk 0:02:54]} 3. Nc3 {[%clk 0:03:00]}  a6 {[%clk 0:02:53]} 4. cxd5 {[%clk 0:03:00]}  exd5 {[%clk 0:02:53]} 5. Nf3 {[%clk 0:03:01]}  Nf6 {[%clk 0:02:53]} 6. Bg5 {[%clk 0:03:01]}  Be7 {[%clk 0:02:53]} 7. e3 {[%clk 0:03:02]}  c6 {[%clk 0:02:49]} 8. Bd3 {[%clk 0:03:02]}  Nbd7 {[%clk 0:02:47]} 9. Qc2 {[%clk 0:03:02]}  Nf8 {[%clk 0:02:46]} 10. O-O {[%clk 0:03:01]}  Ne6 {[%clk 0:02:47]} 11. Bh4 {[%clk 0:03:00]}  g6 {[%clk 0:02:45]} 12. Ne5 {[%clk 0:02:51]}  O-O {[%clk 0:02:44]} 13. h3 {[%clk 0:02:08]}  Ng7 {[%clk 0:02:42]} 14. g4 {[%clk 0:02:03]}  Nd7 {[%clk 0:02:32]} 15. Bg3 {[%clk 0:01:53]}  Bh4 {[%clk 0:02:25]} 16. Ne2 {[%clk 0:01:38]}  Bxg3 {[%clk 0:02:21]} 17. Nxg3 {[%clk 0:01:39]}  Nxe5 {[%clk 0:02:18]} 18. dxe5 {[%clk 0:01:40]}  Qh4 {[%clk 0:02:17]} 19. Kg2 {[%clk 0:01:40]}  h5 {[%clk 0:02:15]} 20. f3 {[%clk 0:01:37]}  Re8 {[%clk 0:02:05]} 21. Qc3 {[%clk 0:01:34]}  Qg5 {[%clk 0:01:53]} 22. f4 {[%clk 0:01:28]}  Qh4 {[%clk 0:01:53]} 23. Rh1 {[%clk 0:01:23]}  hxg4 {[%clk 0:01:36]} 24. hxg4 {[%clk 0:01:24]}  Qxg4 {[%clk 0:01:37]} 25. Be2 {[%clk 0:01:22]}  Qe6 {[%clk 0:01:34]} 26. Rh6 {[%clk 0:01:19]}  Nh5 {[%clk 0:00:33]} 27. Rh1 {[%clk 0:01:07]}  Kg7 {[%clk 0:00:20]} 28. Nxh5+ {[%clk 0:00:59]}  Kxh6 {[%clk 0:00:10]} 29. Nf6+ {[%clk 0:00:59]}  Kg7 {[%clk 0:00:10]} 30. Rh7+ {[%clk 0:00:58]}  Kf8 {[%clk 0:00:10]} 31. Qc5+ {[%clk 0:00:59]}  Qe7 {[%clk 0:00:09]} 32. Rh8+ {[%clk 0:00:57]}  Kg7 {[%clk 0:00:09]} 33. Nxe8+ {[%clk 0:00:53]} 1-0


[Site "https://www.chess.com"]

[Event "Titled Tuesday Blitz May 03 Late 2022"]
[White "Sanchez, Robert"]
[Black "Rytenko, Vsevolod"]
[WhiteFideId "2034360"]
[BlackFideId "14133040"]
[WhiteElo "2432"]
[BlackElo "2120"]
[Result "0-1"]
[Round "01"]
[TimeControl "180+1"]
[Date "2022.05.03"]
[WhiteClock "0:02:03"]
[BlackClock "0:01:51"]

1. e4 {[%clk 0:03:00]}  c5 {[%clk 0:02:59]} 2. Nf3 {[%clk 0:03:00]}  d6 {[%clk 0:02:55]} 3. d4 {[%clk 0:03:00]}  cxd4 {[%clk 0:02:56]} 4. Nxd4 {[%clk 0:03:01]}  Nf6 {[%clk 0:02:51]} 5. Nc3 {[%clk 0:03:01]}  Nc6 {[%clk 0:02:51]} 6. f3 {[%clk 0:03:01]}  e5 {[%clk 0:02:45]} 7. Nb3 {[%clk 0:03:01]}  Be6 {[%clk 0:02:44]} 8. Be3 {[%clk 0:03:01]}  Be7 {[%clk 0:02:44]} 9. Qd2 {[%clk 0:03:02]}  d5 {[%clk 0:02:44]} 10. exd5 {[%clk 0:03:00]}  Nxd5 {[%clk 0:02:45]} 11. Nxd5 {[%clk 0:02:56]}  Qxd5 {[%clk 0:02:45]} 12. Qxd5 {[%clk 0:02:55]}  Bxd5 {[%clk 0:02:46]} 13. O-O-O {[%clk 0:02:55]}  Be6 {[%clk 0:02:43]} 14. Nc5 {[%clk 0:02:55]}  Bc8 {[%clk 0:02:36]} 15. Bb5 {[%clk 0:02:47]}  O-O {[%clk 0:02:35]} 16. Nxb7 {[%clk 0:02:36]}  Bxb7 {[%clk 0:02:34]} 17. Rd7 {[%clk 0:02:36]}  Bc8 {[%clk 0:02:08]} 18. Rc7 {[%clk 0:02:29]}  Nd4 {[%clk 0:02:09]} 19. Rxe7 {[%clk 0:02:10]}  Nxb5 {[%clk 0:02:07]} 20. Rxe5 {[%clk 0:02:11]}  Nc7 {[%clk 0:02:00]} 21. Bc5 {[%clk 0:02:10]}  Rd8 {[%clk 0:01:59]} 22. Rhe1 {[%clk 0:02:09]}  Ne6 {[%clk 0:01:59]} 23. Ba3 {[%clk 0:02:09]}  Bb7 {[%clk 0:01:58]} 24. b3 {[%clk 0:02:04]}  Rac8 {[%clk 0:01:54]} 25. c4 {[%clk 0:02:03]}  Nf4 {[%clk 0:01:51]} 0-1


[Site "https://www.chess.com"]

[Event "Titled Tuesday Blitz May 03 Late 2022"]
[White "Sernecki, Franciszek"]
[Black "Stanisz, Patryk"]
[WhiteFideId "1169297"]
[BlackFideId "1123106"]
[WhiteElo "2165"]
[BlackElo "1833"]
[Result "1-0"]
[Round "01"]
[TimeControl "180+1"]
[Date "2022.05.03"]
[WhiteClock "0:00:29"]
[BlackClock "0:00:01"]

1. d4 {[%clk 0:02:55]}  d5 {[%clk 0:02:59]} 2. c4 {[%clk 0:02:55]}  c6 {[%clk 0:02:58]} 3. Nf3 {[%clk 0:02:54]}  Nf6 {[%clk 0:02:59]} 4. Nc3 {[%clk 0:02:54]}  e6 {[%clk 0:02:59]} 5. e3 {[%clk 0:02:55]}  Nbd7 {[%clk 0:02:58]} 6. Bd3 {[%clk 0:02:53]}  dxc4 {[%clk 0:02:59]} 7. Bxc4 {[%clk 0:02:54]}  b5 {[%clk 0:02:59]} 8. Bd3 {[%clk 0:02:54]}  b4 {[%clk 0:03:00]} 9. Ne4 {[%clk 0:02:51]}  c5 {[%clk 0:03:00]} 10. dxc5 {[%clk 0:02:33]}  Bxc5 {[%clk 0:03:00]} 11. Nxc5 {[%clk 0:02:24]}  Nxc5 {[%clk 0:03:01]} 12. Bb5+ {[%clk 0:02:22]}  Ke7 {[%clk 0:03:01]} 13. Qe2 {[%clk 0:02:15]}  a6 {[%clk 0:02:55]} 14. Bc4 {[%clk 0:02:14]}  Bb7 {[%clk 0:02:44]} 15. O-O {[%clk 0:02:12]}  Qb6 {[%clk 0:02:41]} 16. b3 {[%clk 0:01:59]}  Nce4 {[%clk 0:02:34]} 17. Bb2 {[%clk 0:01:57]}  Rhd8 {[%clk 0:02:27]} 18. Bd4 {[%clk 0:01:54]}  Qa5 {[%clk 0:02:21]} 19. Rfc1 {[%clk 0:01:35]}  Kf8 {[%clk 0:02:02]} 20. Qb2 {[%clk 0:01:33]}  Qh5 {[%clk 0:01:50]} 21. Be2 {[%clk 0:01:16]}  Ng4 {[%clk 0:00:43]} 22. Bxg7+ {[%clk 0:01:14]}  Kg8 {[%clk 0:00:43]} 23. Be5 {[%clk 0:00:59]}  Nexf2 {[%clk 0:00:35]} 24. Bg3 {[%clk 0:00:53]}  Ne4 {[%clk 0:00:30]} 25. Ne5 {[%clk 0:00:48]}  Rd2 {[%clk 0:00:13]} 26. Bxg4 {[%clk 0:00:40]}  Qxg4 {[%clk 0:00:10]} 27. Qxd2 {[%clk 0:00:37]}  Qxg3 {[%clk 0:00:02]} 28. hxg3 {[%clk 0:00:35]}  Nxd2 {[%clk 0:00:02]} 29. Rc7 {[%clk 0:00:32]}  Bd5 {[%clk 0:00:02]} 30. Nxf7 {[%clk 0:00:31]}  Ne4 {[%clk 0:00:02]} 31. Nh6+ {[%clk 0:00:31]}  Kh8 {[%clk 0:00:02]} 32. Rf1 {[%clk 0:00:29]}  Re8 {[%clk 0:00:01]} 33. Rff7 {[%clk 0:00:29]} 1-0


[Site "https://www.chess.com"]

[Event "Titled Tuesday Blitz May 03 Late 2022"]
[White "Skawinski, Arkadiusz"]
[Black "Gombocz, Ferenc Jr."]
[WhiteFideId "1126415"]
[BlackFideId "775029"]
[WhiteElo "2222"]
[BlackElo "1913"]
[Result "1-0"]
[Round "01"]
[TimeControl "180+1"]
[Date "2022.05.03"]
[WhiteClock "0:00:36"]
[BlackClock "0:01:28"]

1. e4 {[%clk 0:02:59]}  e5 {[%clk 0:02:59]} 2. Nf3 {[%clk 0:02:58]}  Nc6 {[%clk 0:03:00]} 3. Bb5 {[%clk 0:02:59]}  g6 {[%clk 0:02:59]} 4. d4 {[%clk 0:02:45]}  exd4 {[%clk 0:02:58]} 5. Bg5 {[%clk 0:02:45]}  Be7 {[%clk 0:02:58]} 6. Bxe7 {[%clk 0:02:42]}  Qxe7 {[%clk 0:02:58]} 7. Bxc6 {[%clk 0:02:42]}  dxc6 {[%clk 0:02:58]} 8. Qxd4 {[%clk 0:02:43]}  Nf6 {[%clk 0:02:58]} 9. Nc3 {[%clk 0:02:42]}  Bg4 {[%clk 0:02:57]} 10. O-O-O {[%clk 0:02:39]}  Bxf3 {[%clk 0:02:52]} 11. gxf3 {[%clk 0:02:39]}  O-O {[%clk 0:02:49]} 12. f4 {[%clk 0:02:35]}  Rfd8 {[%clk 0:02:48]} 13. Qe3 {[%clk 0:02:33]}  Rxd1+ {[%clk 0:02:40]} 14. Rxd1 {[%clk 0:02:33]}  Rd8 {[%clk 0:02:41]} 15. Rxd8+ {[%clk 0:02:25]}  Qxd8 {[%clk 0:02:40]} 16. Qxa7 {[%clk 0:02:25]}  b6 {[%clk 0:02:40]} 17. Qa4 {[%clk 0:02:20]}  c5 {[%clk 0:02:34]} 18. Qc6 {[%clk 0:02:02]}  Qd4 {[%clk 0:02:23]} 19. a4 {[%clk 0:01:41]}  Ng4 {[%clk 0:02:14]} 20. Qxc7 {[%clk 0:01:33]}  Nxf2 {[%clk 0:02:08]} 21. Qb8+ {[%clk 0:01:16]}  Kg7 {[%clk 0:02:07]} 22. Qe5+ {[%clk 0:01:16]}  Qxe5 {[%clk 0:02:07]} 23. fxe5 {[%clk 0:01:17]}  Ng4 {[%clk 0:02:05]} 24. Nd5 {[%clk 0:01:16]}  Nxh2 {[%clk 0:01:54]} 25. Nxb6 {[%clk 0:01:16]}  Nf3 {[%clk 0:01:54]} 26. Nd5 {[%clk 0:01:03]}  Nxe5 {[%clk 0:01:49]} 27. a5 {[%clk 0:01:00]}  Nc6 {[%clk 0:01:48]} 28. a6 {[%clk 0:01:00]}  h5 {[%clk 0:01:48]} 29. Kd2 {[%clk 0:01:00]}  h4 {[%clk 0:01:48]} 30. Ke3 {[%clk 0:01:00]}  g5 {[%clk 0:01:48]} 31. Kf3 {[%clk 0:01:00]}  Ne5+ {[%clk 0:01:47]} 32. Kg2 {[%clk 0:00:56]}  Nc6 {[%clk 0:01:44]} 33. c3 {[%clk 0:00:54]}  g4 {[%clk 0:01:43]} 34. b4 {[%clk 0:00:54]}  cxb4 {[%clk 0:01:41]} 35. cxb4 {[%clk 0:00:55]}  Na7 {[%clk 0:01:41]} 36. Nc3 {[%clk 0:00:53]}  Kg6 {[%clk 0:01:39]} 37. b5 {[%clk 0:00:53]}  Kg5 {[%clk 0:01:38]} 38. b6 {[%clk 0:00:53]}  Nc6 {[%clk 0:01:38]} 39. a7 {[%clk 0:00:53]}  h3+ {[%clk 0:01:36]} 40. Kg3 {[%clk 0:00:43]}  f5 {[%clk 0:01:32]} 41. exf5 {[%clk 0:00:42]}  Nd4 {[%clk 0:01:32]} 42. Ne4+ {[%clk 0:00:40]}  Kxf5 {[%clk 0:01:31]} 43. a8=Q {[%clk 0:00:36]}  Ne2+ {[%clk 0:01:31]} 44. Kf2 {[%clk 0:00:36]}  h2 {[%clk 0:01:28]} 45. Ng3+ {[%clk 0:00:35]}  Nxg3 {[%clk 0:01:28]} 46. Kxg3 {[%clk 0:00:36]} 1-0


[Site "https://www.chess.com"]

[Event "Titled Tuesday Blitz May 03 Late 2022"]
[White "Skuhala, Barbara"]
[Black "Dimakiling, Oliver"]
[WhiteFideId "14605465"]
[BlackFideId "5202248"]
[WhiteElo "2155"]
[BlackElo "2426"]
[Result "0-1"]
[Round "01"]
[TimeControl "180+1"]
[Date "2022.05.03"]
[WhiteClock "0:01:15"]
[BlackClock "0:01:09"]

1. e4 {[%clk 0:02:59]}  g6 {[%clk 0:02:59]} 2. d4 {[%clk 0:02:59]}  Bg7 {[%clk 0:03:00]} 3. Nc3 {[%clk 0:02:59]}  d6 {[%clk 0:03:00]} 4. f3 {[%clk 0:02:59]}  a6 {[%clk 0:02:59]} 5. Be3 {[%clk 0:02:59]}  Nc6 {[%clk 0:02:59]} 6. Qd2 {[%clk 0:03:00]}  b5 {[%clk 0:02:58]} 7. Nce2 {[%clk 0:02:57]}  e5 {[%clk 0:02:57]} 8. d5 {[%clk 0:02:57]}  Nce7 {[%clk 0:02:55]} 9. h4 {[%clk 0:02:55]}  h5 {[%clk 0:02:54]} 10. Nh3 {[%clk 0:02:55]}  Bxh3 {[%clk 0:02:53]} 11. Rxh3 {[%clk 0:02:54]}  Qd7 {[%clk 0:02:49]} 12. Rh1 {[%clk 0:02:53]}  Nf6 {[%clk 0:02:47]} 13. Bg5 {[%clk 0:02:50]}  c6 {[%clk 0:02:46]} 14. dxc6 {[%clk 0:02:48]}  Qxc6 {[%clk 0:02:45]} 15. O-O-O {[%clk 0:02:48]}  Rd8 {[%clk 0:02:42]} 16. Nc3 {[%clk 0:02:48]}  O-O {[%clk 0:02:35]} 17. Bxf6 {[%clk 0:02:46]}  Bxf6 {[%clk 0:02:34]} 18. g4 {[%clk 0:02:46]}  hxg4 {[%clk 0:02:28]} 19. fxg4 {[%clk 0:02:45]}  b4 {[%clk 0:02:28]} 20. Nd5 {[%clk 0:02:45]}  Nxd5 {[%clk 0:02:28]} 21. exd5 {[%clk 0:02:45]}  Qa4 {[%clk 0:02:28]} 22. Kb1 {[%clk 0:02:45]}  e4 {[%clk 0:02:25]} 23. g5 {[%clk 0:02:44]}  Be5 {[%clk 0:02:19]} 24. h5 {[%clk 0:02:44]}  Rb8 {[%clk 0:02:18]} 25. hxg6 {[%clk 0:02:44]}  fxg6 {[%clk 0:02:17]} 26. Bc4 {[%clk 0:02:44]}  Rf3 {[%clk 0:02:03]} 27. Rh6 {[%clk 0:02:41]}  Qe8 {[%clk 0:01:55]} 28. Rdh1 {[%clk 0:02:39]}  Bg7 {[%clk 0:01:52]} 29. Rh7 {[%clk 0:02:37]}  Qe5 {[%clk 0:01:52]} 30. Rxg7+ {[%clk 0:02:34]}  Qxg7 {[%clk 0:01:49]} 31. Qh2 {[%clk 0:02:28]}  Rd8 {[%clk 0:01:49]} 32. Qh4 {[%clk 0:02:17]}  Re8 {[%clk 0:01:44]} 33. Qh2 {[%clk 0:02:14]}  Re5 {[%clk 0:01:40]} 34. Qd2 {[%clk 0:02:09]}  e3 {[%clk 0:01:39]} 35. Qxb4 {[%clk 0:02:07]}  e2 {[%clk 0:01:39]} 36. Re1 {[%clk 0:02:03]}  Qe7 {[%clk 0:01:36]} 37. a3 {[%clk 0:01:57]}  Rf1 {[%clk 0:01:33]} 38. Ka2 {[%clk 0:01:51]}  Rxe1 {[%clk 0:01:33]} 39. Qxe1 {[%clk 0:01:51]}  Kg7 {[%clk 0:01:33]} 40. Qh4 {[%clk 0:01:44]}  e1=Q {[%clk 0:01:30]} 41. Qh6+ {[%clk 0:01:44]}  Kg8 {[%clk 0:01:30]} 42. Qxg6+ {[%clk 0:01:43]}  Qg7 {[%clk 0:01:30]} 43. Qxd6 {[%clk 0:01:41]}  Qe4 {[%clk 0:01:21]} 44. Bb3 {[%clk 0:01:36]}  Qxg5 {[%clk 0:01:15]} 45. Qb8+ {[%clk 0:01:36]}  Kg7 {[%clk 0:01:15]} 46. d6 {[%clk 0:01:36]}  Re8 {[%clk 0:01:14]} 47. Qc7+ {[%clk 0:01:34]}  Kh6 {[%clk 0:01:14]} 48. d7 {[%clk 0:01:34]}  Rd8 {[%clk 0:01:13]} 49. Qb6+ {[%clk 0:01:28]}  Kg7 {[%clk 0:01:12]} 50. Qc7 {[%clk 0:01:18]}  Qee7 {[%clk 0:01:11]} 51. Qc3+ {[%clk 0:01:18]}  Qef6 {[%clk 0:01:10]} 52. Qc7 {[%clk 0:01:17]}  a5 {[%clk 0:01:10]} 53. a4 {[%clk 0:01:15]}  Qge5 {[%clk 0:01:09]} 0-1


[Site "https://www.chess.com"]